fUSD/lending_fUSD_20260415
["ID","MTS","AMOUNT","RATE_DAILY","PERIOD"]
[420512525,1776198634470,-235.75327194,0.00013301,2]
[420512526,1776198634494,-244.476143,0.00013301,2]
[420512527,1776198634515,-253.52176029,0.00013301,2]
[420512528,1776198634531,-298.24882476,0.00013301,2]
[420512529,1776198634551,-300.23240325,0.00013301,2]
[420512530,1776198634572,-150.0,0.00013303,2]
[420512531,1776198634582,-150.0,0.00013303,2]
[420512532,1776198634613,-500.0,0.00013303,2]
[420512533,1776198634627,-150.0,0.00013303,2]
[420512534,1776198634663,-500.0,0.00013303,2]
[420512535,1776198634677,-500.0,0.00013303,2]
[420512536,1776198634726,-500.0,0.00013303,2]
[420512537,1776198634780,-500.0,0.00013303,2]
[420512538,1776198634825,-150.0,0.00013303,2]
[420512539,1776198634860,-500.0,0.00013303,2]
[420512540,1776198634893,-150.0,0.00013303,2]
[420512541,1776198634923,-500.0,0.00013303,2]
[420512542,1776198634939,-150.0,0.00013303,2]
[420512543,1776198634960,-500.0,0.00013303,2]
[420512544,1776198634972,-158.47970056,0.00013303,2]
[420512545,1776198634987,-500.0,0.00013303,2]
[420512546,1776198634999,-500.0,0.00013303,2]
[420512547,1776198635013,-500.0,0.00013303,2]
[420512548,1776198635025,-500.0,0.00013303,2]
[420512549,1776198635035,-1000.0,0.00013306,2]
[420512550,1776198635047,-1000.0,0.0001332,2]
[420512551,1776198635058,-893.49249946,0.00013362,2]
[420512552,1776198635070,-5844.45710921,0.00013364,2]
[420512553,1776198635081,-166.73,0.00013384,2]
[420512554,1776198635094,-1000.0,0.00013403,2]
[420512555,1776198635104,-211.619452,0.00013424,2]
[420512556,1776198635115,-401.246869,0.00013424,2]
[420512557,1776198635131,-272.790698,0.00013424,2]
[420512558,1776198635141,-3240.0,0.00013425,2]
[420512559,1776198635151,-1600.0,0.00013474,2]
[420512560,1776198635164,-1000.0,0.00013485,2]
[420512561,1776198635175,-413.0,0.000135,3]
[420512562,1776198635185,-207.0,0.000135,3]
[420512563,1776198635196,-506.0,0.000135,2]
[420512564,1776198635212,-3292.0,0.00013528,2]
[420512565,1776198635231,-150.0,0.00013577,2]
[420512566,1776198635245,-1000.0,0.00013592,2]
[420512567,1776198635263,-340.53545864,0.00013665,2]
[420512568,1776198635273,-151.0,0.00013689,2]
[420512569,1776198635283,-500.0,0.00013698,2]
[420512570,1776198635307,-500.0,0.00013698,2]
[420512571,1776198635319,-506.78365876,0.00013698,2]
[420512572,1776198635333,-500.0,0.00013698,2]
[420512573,1776198635356,-248.74095659,0.00013698,2]
[420512574,1776198635365,-500.0,0.00013698,2]
[420512575,1776198635384,-500.0,0.00013698,2]
[420512576,1776198635401,-500.0,0.00013698,2]
[420512577,1776198635411,-500.0,0.00013698,2]
[420512578,1776198635428,-500.0,0.00013698,2]
[420512579,1776198635444,-500.0,0.00013698,2]
[420512580,1776198635453,-500.0,0.00013698,2]
[420512581,1776198635462,-500.0,0.00013698,2]
[420512582,1776198635487,-500.0,0.00013698,2]
[420512583,1776198635496,-228.09,0.00013698,2]
[420512584,1776198635506,-500.0,0.00013698,2]
[420512585,1776198635527,-500.0,0.00013698,2]
[420512586,1776198635537,-500.0,0.00013698,2]
[420512587,1776198635546,-500.0,0.00013698,2]
[420512588,1776198635555,-500.0,0.00013698,2]
[420512589,1776198635578,-500.0,0.00013698,2]
[420512590,1776198635588,-500.0,0.00013698,2]
[420512591,1776198635597,-500.0,0.00013698,2]
[420512592,1776198635614,-500.0,0.00013698,2]
[420512593,1776198635623,-500.0,0.00013698,2]
[420512594,1776198635633,-500.0,0.00013698,2]
[420512595,1776198635642,-500.0,0.00013698,2]
[420512596,1776198635660,-500.0,0.00013698,2]
[420512597,1776198635670,-500.0,0.00013698,2]
[420512598,1776198635679,-500.0,0.00013698,2]
[420512599,1776198635689,-500.0,0.00013698,2]
[420512600,1776198635706,-500.0,0.00013698,2]
[420512601,1776198635716,-500.0,0.00013698,2]
[420512602,1776198635725,-500.0,0.00013698,2]
[420512603,1776198635741,-500.0,0.00013698,2]
[420512604,1776198635753,-500.0,0.00013698,2]
[420512605,1776198635763,-500.0,0.00013698,2]
[420512606,1776198635777,-166.66,0.00013699,2]
[420512607,1776198635794,-200.0,0.00013699,2]
[420512608,1776198635804,-829.44,0.00013699,2]
[420512609,1776198635815,-500.0,0.00013699,2]
[420512610,1776198635836,-162.43,0.00013699,2]
[420512611,1776198635846,-986.73,0.00013699,2]
[420512612,1776198635857,-313.0,0.000137,2]
[420512613,1776198635874,-160.0,0.00013752,2]
[420512614,1776198635886,-168.51,0.00013753,2]
[420512615,1776198635900,-150.0,0.00013759,2]
[420512616,1776198635910,-150.0,0.00013759,2]
[420512617,1776198635922,-150.0,0.00013759,2]
[420512618,1776198635937,-150.0,0.00013759,2]
[420512619,1776198635946,-150.0,0.00013759,2]
[420512620,1776198635956,-150.0,0.00013759,2]
[420512621,1776198635971,-150.0,0.00013759,2]
[420512622,1776198635986,-150.0,0.00013759,2]
[420512623,1776198635997,-1637.0,0.00013772,5]
[420512624,1776198636010,-2821.0529311,0.00013772,2]
[420512625,1776198636025,-304.0,0.00013775,2]
[420512626,1776198636037,-431.76,0.00013814,2]
[420512627,1776198636047,-5844.45710921,0.00013823,2]
[420512628,1776198636066,-150.156,0.00013829,2]
[420512629,1776198636078,-1264.0,0.00013829,2]
[420512630,1776198636091,-1218.0,0.00013829,2]
[420512631,1776198636106,-926.0,0.00013829,2]
[420512632,1776198636120,-1348.0,0.00013829,2]
[420512633,1776198636130,-1331.0,0.00013829,2]
[420512634,1776198636154,-2475.033,0.00013829,2]
[420512635,1776198636168,-166.66,0.00013836,2]
[420512636,1776198636186,-200.0,0.00013849,2]
[420512637,1776198636210,-233.51889341,0.00013849,2]
[420512638,1776198636227,-181.08010149,0.00013849,2]
[420512639,1776198636243,-151.0,0.00013871,2]
[420512640,1776198636255,-406.82019915,0.00013871,2]
[420512641,1776198636282,-500.0,0.00013873,2]
[420512642,1776198636299,-500.0,0.00013873,2]
[420512643,1776198636330,-615.79425953,0.00013873,2]
[420512644,1776198636345,-500.0,0.00013873,2]
[420512645,1776198636380,-2815.12881435,0.00013874,2]
[420512646,1776198636418,-36826.78111855,0.00013874,2]
[420512647,1776198636436,-151.0,0.00013874,2]
[420512648,1776198636464,-151.0,0.00013874,2]
[420512649,1776198636495,-151.0,0.00013874,2]
[420512650,1776198636513,-151.0,0.00013874,2]
[420512651,1776198636535,-151.0,0.00013874,2]
[420512652,1776198636551,-151.0,0.00013874,2]
[420512653,1776198636566,-151.0,0.00013874,2]
[420512654,1776198636583,-151.0,0.00013874,2]
[420512655,1776198636609,-150.00000001,0.00013894,2]
[420512656,1776198636627,-879.0,0.000139,2]
[420512657,1776198636651,-307.0,0.000139,2]
[420512658,1776198636665,-1000.0,0.000139,2]
[420512659,1776198636682,-198.00730236,0.00013907,2]
[420512660,1776198636705,-1848.708,0.00013907,2]
[420512661,1776198636716,-154.922,0.00013907,2]
[420512662,1776198636738,-155.60933382,0.00013913,2]
[420512663,1776198636752,-1000.0,0.00013942,2]
[420512664,1776198636769,-150.0,0.0001395,2]
[420512665,1776198636794,-1000.0,0.00013952,2]
[420512666,1776198636809,-1000.0,0.00013959,2]
[420512667,1776198636828,-166.66,0.00013973,2]
[420512668,1776198636840,-986.73,0.00013973,2]
[420512669,1776198636850,-1500.0,0.00014,2]
[420512670,1776198636885,-150.0,0.00014014,2]
[420512671,1776198636897,-150.0,0.00014014,2]
[420512672,1776198636937,-350.0,0.00014027,2]
[420512673,1776198636978,-350.0,0.00014038,2]
[420512674,1776198637003,-413.0,0.00014066,3]
[420512675,1776198637019,-207.0,0.00014066,3]
[420512676,1776198637043,-182.38494,0.00014095,7]
[420512677,1776198637059,-1249.0,0.00014107,5]
[420512678,1776198637075,-150.0,0.00014107,2]
[420512679,1776198637094,-150.0,0.00014107,2]
[420512680,1776198637120,-150.0,0.00014107,2]
[420512681,1776198637135,-150.0,0.00014107,2]
[420512682,1776198637150,-166.66,0.0001411,2]
[420512683,1776198637180,-150.0,0.00014141,2]
[420512684,1776198637193,-1000.0,0.00014154,2]
[420512685,1776198637212,-1000.0,0.00014164,2]
[420512686,1776198637234,-185.7,0.00014224,2]
[420512687,1776198637253,-350.0,0.00014225,2]
[420512688,1776198637271,-166.66,0.00014247,2]
[420512689,1776198637281,-150.94,0.00014247,2]
[420512690,1776198637309,-999.89,0.00014247,2]
[420512691,1776198637327,-150.0,0.00014268,2]
[420512692,1776198637349,-150.0,0.00014268,2]
[420512693,1776198637365,-150.0,0.00014268,2]
[420512694,1776198637400,-5659.71157018,0.00014271,2]
[420512695,1776198637443,-2448.04422773,0.00014271,2]
[420512696,1776198637465,-5844.45710921,0.00014282,2]
[420512697,1776198637480,-242.7385,0.000143,2]
[420512698,1776198637502,-150.0,0.00014332,2]
[420512699,1776198637515,-151.0,0.00014381,2]
[420512700,1776198637555,-166.66,0.00014384,2]
[420512701,1776198637575,-829.44,0.00014384,2]
[420512702,1776198637612,-190.16626424,0.00014384,2]
[420512703,1776198637641,-200.49011962,0.00014397,2]
[420512704,1776198637669,-187.78006525,0.00014397,2]
[420512705,1776198637700,-350.0,0.00014399,2]
[420512706,1776198637721,-1400.0,0.000144,5]
[420512707,1776198637756,-166.73,0.00014404,2]
[420512708,1776198637770,-350.0,0.00014407,2]
[420512709,1776198637794,-350.0,0.00014417,2]
[420512710,1776198637808,-1000.0,0.00014422,2]
[420512711,1776198637826,-304.0,0.00014455,2]
[420512712,1776198637852,-316.28674983,0.00014455,2]
[420512713,1776198637875,-155.60933382,0.00014493,2]
[420512714,1776198637897,-445.81133877,0.000145,4]
[420512715,1776198637919,-222.90566938,0.000145,4]
[420512716,1776198637941,-2900.0,0.000145,5]
[420512717,1776198637963,-150.0,0.00014523,2]
[420512718,1776198637991,-150.0,0.00014523,2]
[420512719,1776198638004,-150.0,0.00014523,2]
[420512720,1776198638032,-150.0,0.00014523,2]
[420512721,1776198638052,-150.0,0.00014523,2]
[420512722,1776198638090,-168.0,0.00014568,2]
[420512723,1776198638108,-495.0,0.00014573,2]
[420512724,1776198638147,-495.0,0.00014573,2]
[420512725,1776198638208,-8107.75579791,0.00014581,2]
[420512726,1776198638274,-1300.0,0.00014582,2]
[420512727,1776198638658,-2600.0,0.00014582,2]
[420512728,1776198638678,-500.0,0.00014584,2]
[420512729,1776198638697,-200.0,0.00014584,2]
[420512730,1776198638711,-1000.0,0.00014586,2]
[420512731,1776198638735,-4400.0,0.000146,5]
[420512732,1776198638749,-712.0,0.00014626,2]
[420512733,1776198638767,-413.0,0.00014633,3]
[420512734,1776198638782,-207.0,0.00014633,3]
[420512735,1776198638799,-168.0,0.00014638,2]
[420512736,1776198638816,-1000.0,0.00014681,2]
[420512737,1776198638831,-2610.9430234,0.000147,2]
[420512738,1776198638842,-5900.0,0.000147,5]
[420512739,1776198638859,-3782.0,0.000147,2]
[420512740,1776198638870,-4012.55069313,0.000147,2]
[420512741,1776198638881,-2822.54148463,0.000147,2]
[420512742,1776198638894,-500.0,0.00014701,2]
[420512743,1776198638906,-500.0,0.00014701,2]
[420512744,1776198638919,-500.0,0.00014701,2]
[420512745,1776198638929,-1399.0,0.00014702,2]
[420512746,1776198638941,-1227.0,0.00014702,2]
[420512747,1776198638954,-1000.0,0.00014702,2]
[420512748,1776198638966,-1000.0,0.00014702,2]
[420512749,1776198638977,-1000.0,0.00014702,2]
[420512750,1776198638992,-1000.0,0.00014702,2]
[420512751,1776198639005,-1000.0,0.00014702,2]
[420512752,1776198639016,-1000.0,0.00014702,2]
[420512753,1776198639027,-1000.0,0.00014702,2]
[420512754,1776198639042,-1000.0,0.00014702,2]
[420512755,1776198639056,-1000.0,0.00014702,2]
[420512756,1776198639073,-1000.0,0.00014702,2]
[420512757,1776198639084,-28.08962309,0.00014702,2]
[420512758,1776198640250,-893.49249946,0.0001387,2]
[420512759,1776198640262,-893.49249946,0.00014377,2]
[420512760,1776198640272,-971.91037691,0.00014702,2]
[420512761,1776198640282,-1000.0,0.00014702,2]
[420512762,1776198640292,-1000.0,0.00014702,2]
[420512763,1776198640305,-1000.0,0.00014702,2]
[420512764,1776198640315,-1000.0,0.00014702,2]
[420512765,1776198640326,-1000.0,0.00014702,2]
[420512766,1776198640337,-1000.0,0.00014702,2]
[420512767,1776198640349,-1000.0,0.00014702,2]
[420512768,1776198640359,-1000.0,0.00014702,2]
[420512769,1776198640370,-1000.0,0.00014702,2]
[420512770,1776198640380,-1000.0,0.00014702,2]
[420512771,1776198640391,-1000.0,0.00014702,2]
[420512772,1776198640401,-1000.0,0.00014702,2]
[420512773,1776198640411,-1000.0,0.00014702,2]
[420512774,1776198640422,-1000.0,0.00014702,2]
[420512775,1776198640435,-322.92759891,0.00014702,2]
[420512776,1776198640445,-1570.36757188,0.00014702,2]
[420512777,1776198640455,-167.47005226,0.00014702,2]
[420512778,1776198640466,-1529.0,0.00014702,2]
[420512779,1776198640475,-303.39007486,0.00014702,2]
[420512780,1776198640487,-152.0,0.00014702,2]
[420512781,1776198640496,-152.0,0.00014702,2]
[420512782,1776198640507,-152.0,0.00014702,2]
[420512783,1776198640534,-152.0,0.00014702,2]
[420512784,1776198640543,-1529.0,0.00014702,2]
[420512785,1776198640553,-1529.0,0.00014702,2]
[420512786,1776198640562,-1529.0,0.00014702,2]
[420512787,1776198640576,-1529.0,0.00014702,2]
[420512788,1776198640586,-1529.0,0.00014702,2]
[420512789,1776198640595,-1529.0,0.00014702,2]
[420512790,1776198640605,-1529.0,0.00014702,2]
[420512791,1776198640614,-1529.0,0.00014702,2]
[420512792,1776198640624,-2000.0,0.00014702,2]
[420512793,1776198640634,-156.63078307,0.00014702,2]
[420512794,1776198640644,-500.0,0.00014709,2]
[420512795,1776198640654,-500.0,0.00014709,2]
[420512796,1776198640665,-500.0,0.00014709,2]
[420512797,1776198640675,-500.0,0.00014709,2]
[420512798,1776198640684,-500.0,0.00014709,2]
[420512799,1776198640693,-500.0,0.00014709,2]
[420512800,1776198640703,-161.54,0.00014713,2]
[420512801,1776198640712,-150.0,0.00014714,2]
[420512802,1776198640722,-1000.0,0.00014726,2]
[420512803,1776198640732,-168.0,0.00014726,2]
[420512804,1776198640743,-168.0,0.00014728,2]
[420512805,1776198640756,-5844.45710921,0.00014741,2]
[420512806,1776198640768,-185.7,0.00014748,2]
[420512807,1776198640778,-168.0,0.00014758,2]
[420512808,1776198640788,-168.0,0.00014771,2]
[420512809,1776198640797,-150.0,0.00014778,2]
[420512810,1776198640809,-150.0,0.00014778,2]
[420512811,1776198640818,-150.0,0.00014778,2]
[420512812,1776198640828,-151.0,0.00014791,2]
[420512813,1776198640837,-384.05593479,0.00014795,2]
[420512814,1776198640847,-2000.0,0.000148,2]
[420512815,1776198640856,-7400.0,0.000148,5]
[420512816,1776198640866,-1600.0,0.00014821,2]
[420512817,1776198640875,-168.0,0.00014826,2]
[420512818,1776198640884,-168.0,0.00014832,2]
[420512819,1776198640893,-258.99,0.0001485,2]
[420512820,1776198640903,-172.0,0.0001485,2]
[420512821,1776198640913,-506.0,0.00014857,3]
[420512822,1776198640923,-350.0,0.0001488,3]
[420512823,1776198640933,-2597.0,0.00014881,2]
[420512824,1776198640943,-5000.0,0.00014888,2]
[420512825,1776198640954,-1316.9211,0.00014888,2]
[420512826,1776198640964,-151.0,0.00014888,2]
[420512827,1776198640975,-151.0,0.00014888,2]
[420512828,1776198640984,-151.0,0.00014888,2]
[420512829,1776198640996,-151.0,0.00014888,2]
[420512830,1776198641007,-8107.75579791,0.0001489,2]
[420512831,1776198641017,-1400.0,0.000149,5]
[420512832,1776198641031,-2000.0,0.000149,2]
[420512833,1776198641041,-2479.46,0.00014901,2]
[420512834,1776198641055,-2000.0,0.00014902,2]
[420512835,1776198641065,-150.0,0.00014905,2]
[420512836,1776198641082,-151.0,0.00014922,2]
[420512837,1776198641093,-151.0,0.00014922,2]
[420512838,1776198641103,-70268.4942522,0.00014922,2]
[420512839,1776198641116,-194.72792766,0.00014945,2]
[420512840,1776198641129,-208.0,0.00014971,2]
[420512841,1776198641139,-1000.0,0.0001498,2]
[420512842,1776198641149,-935.14307341,0.00014994,2]
[420512843,1776198641158,-151.0,0.00014997,2]
[420512844,1776198641176,-500.0,0.00014999,2]
[420512845,1776198641186,-500.0,0.00014999,2]
[420512846,1776198641196,-500.0,0.00014999,2]
[420512847,1776198641214,-50351.00928661,0.00015,3]
[420512848,1776198641224,-538.0,0.00015,2]
[420512849,1776198641233,-165.4878,0.00015,2]
[420512850,1776198641243,-534.0,0.00015,2]
[420512851,1776198641256,-1180.0,0.00015,2]
[420512852,1776198641267,-300.0,0.00015,2]
[420512853,1776198641277,-281.0,0.00015008,2]
[420512854,1776198641290,-150.0,0.00015033,2]
[420512855,1776198641305,-150.0,0.00015033,2]
[420512856,1776198641320,-168.0,0.00015033,2]
[420512857,1776198641332,-172.3894231,0.00015048,2]
[420512858,1776198641347,-168.0,0.00015049,2]
[420512859,1776198641364,-350.0,0.00015053,3]
[420512860,1776198641377,-154.0,0.00015068,2]
[420512861,1776198641390,-247.0,0.00015068,2]
[420512862,1776198641408,-829.44,0.00015068,2]
[420512863,1776198641427,-281.76,0.00015068,2]
[420512864,1776198641439,-352.553847,0.00015068,2]
[420512865,1776198641455,-352.553847,0.00015068,2]
[420512866,1776198641474,-352.553847,0.00015068,2]
[420512867,1776198641485,-352.553847,0.00015068,2]
[420512868,1776198641501,-352.553847,0.00015068,2]
[420512869,1776198641522,-352.553847,0.00015068,2]
[420512870,1776198641533,-352.553847,0.00015068,2]
[420512871,1776198641543,-352.553847,0.00015068,2]
[420512872,1776198641678,-200.0,0.00015068,2]
[420512873,1776198641695,-800.0,0.00015068,2]
[420512874,1776198641707,-350.0,0.00015071,2]
[420512875,1776198641717,-155.60933382,0.00015073,2]
[420512876,1776198641729,-2821.0529311,0.00015096,2]
[420512877,1776198641747,-150.0,0.00015097,2]
[420512878,1776198641761,-2000.0,0.00015102,2]
[420512879,1776198641770,-168.0,0.00015107,2]
[420512880,1776198641784,-1000.0,0.00015108,2]
[420512881,1776198641802,-168.0,0.00015109,2]
[420512882,1776198641811,-352.553847,0.00015165,2]
[420512884,1776198641822,-352.553847,0.00015165,2]
[420512886,1776198641840,-151.0,0.00015165,2]
[420512888,1776198641851,-352.553847,0.00015165,2]
[420512889,1776198641861,-151.0,0.00015165,2]
[420512890,1776198641870,-352.553847,0.00015165,2]
[420512891,1776198641894,-151.0,0.00015165,2]
[420512892,1776198641903,-151.0,0.00015165,2]
[420512893,1776198641912,-37793.2629435,0.00015165,2]
[420512894,1776198641935,-495.0,0.00015191,2]
[420512895,1776198641945,-495.0,0.00015191,2]
[420512896,1776198641954,-495.0,0.00015191,2]
[420512897,1776198641975,-2000.0,0.00015196,2]
[420512898,1776198641984,-413.0,0.000152,3]
[420512899,1776198641994,-207.0,0.000152,3]
[420512900,1776198642003,-208.82674304,0.000152,2]
[420512901,1776198642021,-601.08866282,0.000152,2]
[420512902,1776198642030,-8107.75579791,0.000152,2]
[420512903,1776198642043,-294.01734024,0.000152,2]
[420512904,1776198642052,-5844.45710921,0.000152,2]
[420512905,1776198642062,-185.72821304,0.000152,2]
[420512906,1776198642071,-406.11061019,0.000152,2]
[420512907,1776198642083,-25000.0,0.00015202,3]
[420512908,1776198642094,-350.0,0.00015207,2]
[420512909,1776198642103,-25000.0,0.00015211,3]
[420512910,1776198642118,-151.0,0.00015211,2]
[420512911,1776198642127,-151.0,0.00015211,2]
[420512912,1776198642137,-2614.4507813,0.00015215,2]
[420512913,1776198642146,-25000.0,0.0001522,3]
[420512914,1776198642164,-25000.0,0.00015229,3]
[420512915,1776198642174,-1000.0,0.00015235,2]
[420512916,1776198642184,-473.97730204,0.00015236,2]
[420512917,1776198642194,-200.0,0.00015237,2]
[420512918,1776198642209,-200.0,0.00015237,2]
[420512919,1776198642218,-200.0,0.00015237,2]
[420512920,1776198642229,-200.0,0.00015237,2]
[420512921,1776198642239,-200.0,0.00015237,2]
[420512922,1776198642253,-200.0,0.00015237,2]
[420512923,1776198642263,-200.0,0.00015237,2]
[420512924,1776198642274,-251.0,0.00015237,2]
[420512925,1776198642283,-500.0,0.00015237,2]
[420512926,1776198642292,-500.0,0.00015237,2]
[420512927,1776198642301,-500.0,0.00015237,2]
[420512928,1776198642310,-25000.0,0.00015237,3]
[420512929,1776198642322,-150.0,0.00015239,2]
[420512932,1776198642331,-150.0,0.00015239,2]
[420512935,1776198642340,-150.0,0.00015239,2]
[420512937,1776198642349,-150.0,0.00015239,2]
[420512939,1776198642358,-150.0,0.00015239,2]
[420512941,1776198642368,-250.0,0.00015239,2]
[420512943,1776198642378,-150.0,0.00015239,2]
[420512945,1776198642387,-352.553847,0.00015246,2]
[420512947,1776198642396,-352.553847,0.00015246,2]
[420512949,1776198642405,-151.0,0.00015246,2]
[420512951,1776198642415,-352.553847,0.00015246,2]
[420512953,1776198642424,-177.913752,0.00015246,2]
[420512955,1776198642434,-352.553847,0.00015246,2]
[420512957,1776198642443,-151.0,0.00015246,2]
[420512959,1776198642452,-25000.0,0.00015246,3]
[420512961,1776198642461,-25000.0,0.00015255,3]
[420512963,1776198642470,-1000.0,0.00015257,2]
[420512965,1776198642480,-1000.0,0.00015257,2]
[420512967,1776198642489,-500.78390571,0.00015257,2]
[420512969,1776198642498,-293.3917272,0.00015257,2]
[420512971,1776198642507,-1000.0,0.00015257,2]
[420512973,1776198642516,-1000.0,0.00015257,2]
[420512975,1776198642525,-500.0,0.00015263,2]
[420512977,1776198642534,-500.0,0.00015263,2]
[420512979,1776198642543,-500.0,0.00015263,2]
[420512980,1776198642552,-25000.0,0.00015264,3]
[420512982,1776198642561,-168.0,0.00015271,2]
[420512984,1776198642570,-25000.0,0.00015273,3]
[420512986,1776198642580,-500.0,0.00015273,2]
[420512988,1776198642588,-500.0,0.00015273,2]
[420512990,1776198642598,-422.76748385,0.00015273,2]
[420512992,1776198642607,-500.0,0.00015273,2]
[420512993,1776198642616,-500.0,0.00015273,2]
[420512994,1776198642625,-500.0,0.00015273,2]
[420512995,1776198642634,-500.0,0.00015273,2]
[420512996,1776198642644,-500.0,0.00015273,2]
[420512997,1776198642653,-501.36461497,0.00015273,2]
[420512998,1776198642662,-628.58131968,0.00015273,2]
[420512999,1776198642673,-500.0,0.00015273,2]
[420513000,1776198642682,-500.0,0.00015273,2]
[420513001,1776198642692,-500.0,0.00015273,2]
[420513002,1776198642702,-286.99515382,0.00015273,2]
[420513003,1776198642712,-500.43288373,0.00015273,2]
[420513004,1776198642723,-500.15875882,0.00015273,2]
[420513005,1776198642732,-500.0,0.00015273,2]
[420513006,1776198642742,-205.45575229,0.00015273,2]
[420513007,1776198642753,-501.23209011,0.00015273,2]
[420513008,1776198642763,-500.0,0.00015273,2]
[420513009,1776198642773,-500.0,0.00015273,2]
[420513011,1776198642782,-500.0,0.00015273,2]
[420513012,1776198642793,-500.0,0.00015273,2]
[420513015,1776198642803,-500.0,0.00015273,2]
[420513017,1776198642812,-500.0,0.00015273,2]
[420513019,1776198642822,-500.0,0.00015273,2]
[420513021,1776198642834,-500.0,0.00015273,2]
[420513024,1776198642844,-500.0,0.00015273,2]
[420513026,1776198642854,-180.50915092,0.00015273,2]
[420513028,1776198642863,-338.18921099,0.00015273,2]
[420513030,1776198642873,-504.16318731,0.00015273,2]
[420513032,1776198642885,-500.0,0.00015273,2]
[420513034,1776198642894,-500.0,0.00015273,2]
[420513036,1776198642903,-501.66875593,0.00015273,2]
[420513038,1776198642913,-160.43986515,0.00015273,2]
[420513040,1776198642922,-500.0,0.00015273,2]
[420513042,1776198642932,-500.0,0.00015273,2]
[420513044,1776198642942,-500.0,0.00015273,2]
[420513045,1776198642951,-500.0,0.00015273,2]
[420513046,1776198642961,-151.0,0.00015273,2]
[420513047,1776198642971,-25000.0,0.00015281,3]
[420513048,1776198642981,-168.0,0.00015285,2]
[420513049,1776198642991,-150.0,0.00015288,2]
[420513050,1776198643001,-150.0,0.00015288,2]
[420513051,1776198643013,-150.0,0.00015288,2]
[420513052,1776198643022,-150.0,0.00015288,2]
[420513053,1776198643032,-150.0,0.00015288,2]
[420513054,1776198643044,-150.0,0.00015288,2]
[420513055,1776198643053,-473.97730204,0.0001529,2]
[420513056,1776198643064,-473.97730204,0.0001529,2]
[420513057,1776198643074,-25000.0,0.0001529,3]
[420513058,1776198643086,-500.0,0.00015298,2]
[420513059,1776198643097,-500.0,0.00015298,2]
[420513060,1776198643107,-500.0,0.00015298,2]
[420513061,1776198643120,-500.0,0.00015298,2]
[420513062,1776198643129,-30000.0,0.00015299,2]
[420513063,1776198643142,-3541.54922673,0.00015299,3]
[420513064,1776198643153,-82936.18309281,0.00015299,3]
[420513065,1776198643163,-25000.0,0.00015299,3]
[420513066,1776198643179,-9051.62573639,0.00015299,3]
[420513067,1776198643190,-500.0,0.00015299,2]
[420513068,1776198643200,-500.0,0.00015299,2]
[420513069,1776198643211,-500.0,0.00015299,2]
[420513070,1776198643228,-500.0,0.00015299,2]
[420513071,1776198643237,-500.0,0.00015299,2]
[420513072,1776198643247,-500.0,0.00015299,2]
[420513073,1776198643265,-500.0,0.00015299,2]
[420513074,1776198643276,-500.0,0.00015299,2]
[420513075,1776198643285,-500.0,0.00015299,2]
[420513076,1776198643294,-641.66747877,0.00015299,2]
[420513077,1776198643313,-151.0,0.00015299,2]